Cogmind - Beta 12 @@@ ROGUE MODE // 2023.05.04 @ 01:59:41 Player: omewwes Result: Destroyed by B-99 Colossus with Multirail Performance ------------- Evolutions (9) 4500 Regions Visited (28) 5600 Robots Destroyed (240) 1200 Value Destroyed (11538) 11538 Prototype IDs (67) 1340 Alien Tech Used (0) 0 Bonus (10218) 10218 TOTAL SCORE: 34396 Bonus ------- Triggered High Security 500 High Alert Combat Kills 4145 Follower Combat Kills 2556 Network Hubs Disabled 200 Aligned with FarCom 300 Met Data Miner 300 Met Warlord at Base 500 MAIN.C Attacked Warlord 500 Built Enhanced Grunts 300 Met Warlord at Research 2000 Friendly Fire -1083 Cogmind --------- Core Integrity 0/1600 Matter 300/300 Energy 98/100 System Corruption 25% Temperature Cool (0) Movement Core (50) Location -1/Command Parts ------- > --- POWER (2) -------- (None) > --- PROPULSION (7) --- (None) > --- UTILITY (12) ----- Experimental Targeting Computer Advanced Target Analyzer Improved Hacking Suite > --- WEAPON (4) ------- (None) > --- INVENTORY (5) ---- Experimental Matter Compressor (500) Advanced ECM Suite Improved Thermal Shield Point Defense System Trap Reconfigurator Peak State ------------ > --- POWER ------------ Quantum-Antimatter Reactor > --- PROPULSION ------- Treaded Siege-Diametric Exoskeleton > --- UTILITY ---------- Armored Scrap Engine Experimental Heat Sink Large Storage Unit Experimental Targeting Computer Improved Weapon Cycler Experimental Transmission Jammer Experimental Reaction Control System Light Regenerative Plating Experimental EM Disruption Field Advanced Hacking Suite Advanced Hacking Suite > --- WEAPON ----------- Directed Nova Construct/C Hpw. Thermal Phase Construct/G Hpw. Laser Nova Construct/G > --- INVENTORY -------- Advanced Energy Well Experimental Matter Compressor Precision Energy Filter Advanced ECM Suite Advanced Cloaking Device Improved Thermal Shield Advanced Force Field Point Defense System Point Defense System Trap Reconfigurator Mapping Drone Bay Stealth Drone Bay Fusion Bomb Launcher Advanced Remote Datajack [Rating: 198] Favorites ----------- Power Constructs Engine Improved Ion Engine Power Core Light Nuclear Core Reactor Constructs Propulsion Constructs Treads Constructs Leg Aluminum Leg Wheel Wheel Utility Advanced Hacking Suite Device Armored Scrap Engine Storage High-capacity Storage Unit Processor Experimental Targeting Computer Hackware Advanced Hacking Suite Protection Light Regenerative Plating Weapon Constructs Energy Gun Constructs Energy Cannon EMDS Ballistic Gun Assault Rifle Ballistic Cannon Light Cannon Launcher Improved Grenade Launcher Special Weapon Improved Remote Datajack Impact Weapon Heavy Mace Slashing Weapon Axe Piercing Weapon Vortex Lance Build | -11 -10 -10 -10 -9 -8 -8 -8 -6 -6 -6 -6 -5 -5 -5 -5 -5 -5 -4 -4 -4 -4 -3 -3 -3 -3 -2 -1 -1 ------- Run | Jun Mat Min Exi Min Mat Sto Rec Fac Low Low Dat Pro Fac Ext Cet Arc Hub Fac Upp Upp War Pro Res Arm Lab Res Acc Com Slots Evolved 18 | . . . . . 4 . . 4 . . . . 2 . . . . 2 . . . . 2 . . 2 2 . Power 1 | . . . . . . . . . . . . . . . . . . 1 . . . . . . . . . . Propulsion 5 | . . . . . 2 . . 1 . . . . . . . . . 1 . . . . . . . 1 . . Utility 10 | . . . . . 2 . . 3 . . . . 2 . . . . . . . . . 1 . . . 2 . Weapon 2 | . . . . . . . . . . . . . . . . . . . . . . . 1 . . 1 . . Parts Attached 254 | 3 7 . . 2 34 13 5 13 3 . . 3 7 7 2 1 12 31 1 3 11 . 4 10 . 29 24 29 Power 6 | . 1 . . . 1 1 . 2 . . . . . . . . . . . . . . . . . . . 1 Engine 3 | . 1 . . . . . . 2 . . . . . . . . . . . . . . . . . . . . Core 2 | . . . . . 1 1 . . . . . . . . . . . . . . . . . . . . . . Reactor 1 | . . . . . . . . . . . . . . . . . . . . . . . . . . . . 1 Propulsion 21 | 2 . . . 1 12 4 1 . . . . . . . . . . . . . . . . . . . . 1 Treads 19 | 2 . . . 1 10 4 1 . . . . . . . . . . . . . . . . . . . . 1 Leg . | . . . . . . . . . . . . . . . . . . . . . . . . . . . . . Wheel 2 | . . . . . 2 . . . . . . . . . . . . . . . . . . . . . . . Hover . | . . . . . . . . . . . . . . . . . . . . . . . . . . . . . Flight . | . . . . . . . . . . . . . . . . . . . . . . . . . . . . . Utility 158 | . 3 . . . 5 4 2 9 2 . . 2 7 3 1 . 8 18 1 2 6 . 4 6 . 29 23 23 Device 122 | . 1 . . . 2 4 2 8 1 . . 2 6 3 . . 3 12 1 2 5 . 3 6 . 27 18 16 Storage 9 | . 2 . . . . . . . . . . . . . . . 2 2 . . . . . . . 2 . 1 Processor 12 | . . . . . 3 . . 1 1 . . . . . . . 2 1 . . . . 1 . . . . 3 Hackware 6 | . . . . . . . . . . . . . 1 . . . 1 1 . . . . . . . . 1 2 Protection 9 | . . . . . . . . . . . . . . . 1 . . 2 . . 1 . . . . . 4 1 Artifact . | . . . . . . . . . . . . . . . . . . . . . . . . . . . . . Weapon 69 | 1 3 . . 1 16 4 2 2 1 . . 1 . 4 1 1 4 13 . 1 5 . . 4 . . 1 4 Energy Gun 9 | . . . . 1 4 2 . . . . . . . . . . . 1 . . 1 . . . . . . . Energy Cannon 18 | . . . . . 2 . . 1 . . . . . . . . 2 6 . . 2 . . 4 . . . 1 Ballistic Gun 12 | 1 1 . . . 6 . 1 . 1 . . . . . 1 . 1 . . . . . . . . . . . Ballistic Cannon 10 | . 1 . . . 1 . . . . . . . . . . . . 6 . 1 . . . . . . . 1 Launcher 9 | . . . . . 1 . . 1 . . . . . 3 . . 1 . . . . . . . . . 1 2 Special Weapon 4 | . . . . . . . . . . . . 1 . 1 . 1 . . . . 1 . . . . . . . Impact Weapon 5 | . 1 . . . 2 2 . . . . . . . . . . . . . . . . . . . . . . Slashing Weapon 1 | . . . . . . . 1 . . . . . . . . . . . . . . . . . . . . . Piercing Weapon 1 | . . . . . . . . . . . . . . . . . . . . . 1 . . . . . . . Special Melee Weapon . | . . . . . . . . . . . . . . . . . . . . . . . . . . . . . Unidentified Prototypes 24 | . . . . . 2 . . . . . . . . . 2 . 4 1 . . 8 . . . . 5 1 1 Corrupted Parts 2 | . . . . . 1 . . . . . . . . . . . 1 . . . . . . . . . . . System Corruption 6 | . . . . . 1 . . . . . . . . . . . 5 . . . . . . . . . . . Parts Lost 57 | . . . . 1 13 2 1 1 . . . 1 1 . . . 6 . . . . . . . . 1 2 28 Power 6 | . . . . . 1 1 . 1 . . . 1 . . . . . . . . . . . . . . . 2 Propulsion 15 | . . . . 1 7 1 . . . . . . . . . . . . . . . . . . . . . 6 Utility 22 | . . . . . 1 . . . . . . . 1 . . . 4 . . . . . . . . 1 2 13 Weapon 14 | . . . . . 4 . 1 . . . . . . . . . 2 . . . . . . . . . . 7 Highest Loss Streak 10 | . . . . 1 8 1 1 1 . . . 1 1 . . . 4 . . . . . . . . 1 1 10 To Critical Strikes 3 | . . . . . . . . . . . . . . . . . . . . . . . . . . . . 3 Average Slot Usage (%) 71 | . 99 100 100 100 95 99 59 49 63 66 66 65 67 67 64 64 63 55 57 57 57 57 57 63 63 55 61 54 Engine 3 | . 14 14 14 14 3 . . 5 6 6 6 3 . . . . . . . . . . . . . . . . Core 1 | . . . . . 5 8 9 . . . . 2 5 5 5 5 . . . . . . . . . . . . Reactor 1 | . . . . . . . . . . . . . . . . . 4 5 5 5 5 5 4 4 4 4 4 3 Treads 10 | . 28 28 28 28 27 34 10 1 . . . . . . . . . . 4 5 5 5 4 4 4 . . 2 Hover 1 | . . . . . . . . 1 6 6 6 6 5 5 5 5 5 . . . . . . . . 1 . . Device 19 | . 13 14 14 14 7 9 17 28 33 33 33 35 41 40 36 35 29 11 10 10 9 10 14 17 19 20 24 16 Storage 5 | . 14 14 14 14 9 9 . . . . . . . . . . . 6 5 5 5 5 4 4 4 4 4 3 Processor 4 | . . . . . 18 18 . . 5 6 6 3 . . . . 1 5 10 10 10 10 9 5 4 4 4 4 Hackware 3 | . . . . . . . . . . . . . 5 5 5 5 7 10 10 10 10 10 9 9 9 4 8 9 Protection 1 | . . . . . . . . . . . . . . . 3 5 3 4 5 5 5 5 4 4 4 4 3 2 Energy Gun 1 | . . . . 8 5 8 4 . . . . 1 3 . . . 2 . . . . . . . . . . . Energy Cannon 2 | . . . . . 3 . . . . . . 1 2 . . . 1 1 5 4 1 5 4 4 7 5 8 7 Ballistic Gun 3 | . 8 14 14 14 3 5 . . 3 6 6 3 . 2 5 5 2 . . . . . . 5 . . . . Ballistic Cannon 3 | . 12 14 14 5 2 . . . 1 6 6 4 1 2 . . . 3 . . 2 . . 1 3 2 . . Impact Weapon 1 | . 7 . . . 1 4 3 . . . . . . . . . . . . . . . . . . . . . Naked Turns . | . . . . . . . . . . . . . . . . . . . . . . . . . . . . . Heaviest Build 118 | 14 53 53 53 53 55 54 53 18 24 24 24 30 31 38 37 35 60 67 56 58 69 64 80 105 105 112 114 118 Greatest Support 240 | 40 40 40 40 40 80 80 80 39 52 52 52 52 52 52 52 52 52 62 197 197 197 197 197 197 197 197 240 160 Greatest Overweight (x) 5 | . 1 1 1 1 5 5 2 1 . . . . . . . . 1 1 . . . . . . . . . . Average Overweight (x) . | . . 1 1 1 2 . . . . . . . . . . . . . . . . . . . . . . . Largest Inventory Capacity 20 | 8 20 20 20 20 20 20 20 5 5 5 5 5 5 5 5 5 15 15 10 10 10 10 10 10 10 15 15 15 Average Capacity 11 | 8 12 20 20 20 20 20 6 5 5 5 5 5 5 5 5 5 5 10 10 10 10 10 10 10 10 12 15 12 Most Carried 20 | 6 10 18 19 20 20 20 20 5 5 5 5 5 5 5 5 5 8 10 10 10 10 10 10 10 10 15 15 15 Average Carried 10 | 5 7 13 18 19 17 19 5 3 4 4 5 4 4 4 4 4 4 9 10 9 9 10 8 9 9 12 13 11 Final Capacity 20 | 8 20 20 20 20 20 20 5 5 5 5 5 5 5 5 5 5 15 10 10 10 10 10 10 10 10 15 15 5 Final Carried 20 | 3 10 18 19 20 20 20 4 3 5 5 5 5 5 5 5 5 8 10 10 10 10 10 9 10 8 15 13 5 Scrap Engine Consumption 183 | . . . . . . . 6 11 6 1 . 18 7 7 6 2 11 9 1 . 10 . 3 15 2 19 24 25 Constructs Created 12 | . . . . . . . 1 . 2 . . 2 . . . . 1 . . . 1 . . 2 . . 1 2 Constructs Modified 65 | . . . . . . . 2 3 1 . . 5 3 4 3 . 2 4 3 . 3 . . 5 1 9 5 12 Class Distribution -------------------- 31% | Mutant 29% | Hacker-Construct 18% | Construct 9% | Commander-Construct 6% | Scavenger-Mutant Dominant Class ---------------- Mutant | -10/Materials Mutant | -10/Mines Mutant | -10/Exiles Mutant | -9/Mines Mutant | -8/Materials Scavenger-Mutant | -8/Storage Mutant | -8/Recycling Mutant | -6/Factory Ninja | -6/Lower Caves Construct | -6/Lower Caves Construct | -6/Data Miner Construct | -5/Proximity Caves Commander-Construct | -5/Factory Commander-Construct | -5/Extension Construct | -5/Cetus Commander-Construct | -5/Archives Commander-Construct | -5/Hub_04(d) Hacker-Construct | -4/Factory Hacker-Construct | -4/Upper Caves Hacker-Construct | -4/Upper Caves Hacker-Construct | -4/Warlord Hacker-Construct | -3/Proximity Caves Hacker-Construct | -3/Research Hacker-Construct | -3/Armory Hacker-Construct | -3/Lab Construct | -2/Research Hacker-Construct | -1/Access Hacker-Construct | -1/Command Resources | -11 -10 -10 -10 -9 -8 -8 -8 -6 -6 -6 -6 -5 -5 -5 -5 -5 -5 -4 -4 -4 -4 -3 -3 -3 -3 -2 -1 -1 ----------- Run | Jun Mat Min Exi Min Mat Sto Rec Fac Low Low Dat Pro Fac Ext Cet Arc Hub Fac Upp Upp War Pro Res Arm Lab Res Acc Com Matter Collected 7669 | 200 345 61 74 23 600 212 119 60 208 35 . 145 52 653 36 17 436 923 242 44 159 4 67 434 . 1170 644 706 Remotely . | . . . . . . . . . . . . . . . . . . . . . . . . . . . . . Salvage Created 12876 | . 377 19 . 75 990 709 735 176 106 . . . . 1032 . . 578 927 275 90 . . 832 619 . 1246 2378 1712 Parts 509 | . 23 3 . 4 54 38 26 8 7 . . . . 43 . . 27 31 4 . . . 27 22 . 45 87 60 Haulers Intercepted 25 | . 1 . . . 1 2 . 1 . . . . . 4 . . 2 1 . . . . 5 . . 1 7 . Recyclers Shooed 4 | . 1 . . . . 1 . . . . . . 1 . . . . 1 . . . . . . . . . . Parts Field Recycled . | . . . . . . . . . . . . . . . . . . . . . . . . . . . . . Retrieved Matter . | . . . . . . . . . . . . . . . . . . . . . . . . . . . . . Parts Self-Destructed 23 | . . . . . . . . . 3 . . 12 . . . . . . 2 6 . . . . . . . . Prevented 6 | . . . . . . . . . . . . 6 . . . . . . . . . . . . . . . . Kills | -11 -10 -10 -10 -9 -8 -8 -8 -6 -6 -6 -6 -5 -5 -5 -5 -5 -5 -4 -4 -4 -4 -3 -3 -3 -3 -2 -1 -1 ------- Run | Jun Mat Min Exi Min Mat Sto Rec Fac Low Low Dat Pro Fac Ext Cet Arc Hub Fac Upp Upp War Pro Res Arm Lab Res Acc Com Combat Hostiles Destroyed 166 | . 13 . . 4 17 9 4 . 1 . . . . 9 . . 6 16 1 . . . 8 10 . 17 24 27 Melee 6 | . . . . . 1 . 2 . 1 . . . . . . . . . . . . . . . . . . 2 Guns 31 | . 4 . . 4 5 9 1 . . . . . . . . . 3 . . . . . . 3 . . . 2 Cannons 99 | . 9 . . . 10 . . . . . . . . 1 . . 2 11 1 . . . 8 5 . 16 21 15 AOE 21 | . . . . . 1 . 1 . . . . . . 8 . . 1 1 . . . . . . . . 3 6 Classes Destroyed 24 | . 4 1 . 1 6 1 2 . 2 . . . . 2 . . . . . . . . . 1 . 2 . 2 Worker 11 | . . . . . 2 . . 1 . . . . . 1 . . 2 1 . . . . . . . . 4 . Builder 9 | . . 1 . . 2 . 1 . . . . . . 3 . . . . . . . . . . . . 2 . Tunneler 3 | . . . . . 2 . . . . . . . . 1 . . . . . . . . . . . . . . Hauler 25 | . 1 . . . 1 2 . 1 . . . . . 4 . . 2 1 . . . . 5 . . 1 7 . Recycler 8 | . . . . . 1 1 5 . . . . . . . . . . 1 . . . . . . . . . . Operator 4 | . . . . . . 1 . . . . . . . . . . . 1 . . . . . . . . 1 1 Drone 1 | . . . . . . . . . . . . . . . . . . . . . . . . . . 1 . . Watcher 12 | . 1 . . . . . . 2 . . . . . 1 . . . 1 . . . . . . . 2 3 2 Swarmer 28 | . 6 . . 3 . . . . . . . . . . . . . 4 . . . . 3 . . 5 7 . Saboteur 2 | . . . . . . . . . . . . . . . . . . . . . . . . . . . . 2 Grunt 58 | . 7 . . . 8 3 . . . . . . . 7 . . 3 5 . . . . 4 . . 4 6 11 Brawler 1 | . . . . . . . . . . . . . . . . . . . . . . . . . . . . 1 Duelist 7 | . . . . . . . . . . . . . . 1 . . . . . . . . 1 3 . 1 . 1 Protector 2 | . . . . . . . 2 . . . . . . . . . . . . . . . . . . . . . Sentry 28 | . . . . . 5 6 . . . . . . . 1 . . . 1 1 . . . . 3 . 3 3 5 Demolisher 2 | . . . . . . . 2 . . . . . . . . . . . . . . . . . . . . . Specialist 1 | . . . . . . . . . . . . . . . . . . . . . . . . 1 . . . . Hunter 9 | . . . . . 3 . . . . . . . . . . . . 2 . . . . . . . . 2 2 Programmer 18 | . . . . . . . . . 1 . . . . . . . 1 4 . . . . . 3 . . 6 3 Heavy 2 | . . . . . 1 . . . . . . . . . . . . . . . . . . . . . . 1 Lightning 2 | . . . . . . . . . . . . . . . . . 2 . . . . . . . . . . . Striker 3 | . . . . . . . . . . . . . . . . . . . . . . . . . . 3 . . Alpha 7 1 | . . . . . . . . . . . . . . . . . . . . . . . . . . . . 1 Packrat 2 | . . . . . . . . . . . . . . . . . . . 1 1 . . . . . . . . Samaritan 3 | . . . . . . . . . 1 . . . . . . . . . 2 . . . . . . . . . Assembled 1 | . . . . 1 . . . . . . . . . . . . . . . . . . . . . . . . Savage 2 | . . . . . . . . . . . . . . 2 . . . . . . . . . . . . . . Butcher 1 | . . . . . . . . . . . . . . 1 . . . . . . . . . . . . . . Guerrilla 1 | . . . . . . . . . . . . . . 1 . . . . . . . . . . . . . . Best Kill Streak 7 | . 5 1 . 3 4 4 4 2 1 . . . . 5 . . 4 5 1 . . . 6 3 . 5 6 7 Combat Bots Only 7 | . 4 . . 3 3 3 2 . 1 . . . . 5 . . 3 4 1 . . . 5 3 . 5 4 7 Max Kills in Single Turn 6 | . 1 1 . 1 1 1 1 1 1 . . . . 4 . . 1 2 1 1 . . 1 1 . 1 2 6 Gunslinging . | . . . . . . . . . . . . . . . . . . . . . . . . . . . . . Exploded 6 | . . . . . 1 . 1 . . . . . . 2 . . 1 1 . . . . . . . . 2 6 Melee 1 | . . . . . 1 . 1 . 1 . . . . . . . . . . . . . . . . . . 1 Uniques/NPCs Destroyed . | . . . . . . . . . . . . . . . . . . . . . . . . . . . . . Combat | -11 -10 -10 -10 -9 -8 -8 -8 -6 -6 -6 -6 -5 -5 -5 -5 -5 -5 -4 -4 -4 -4 -3 -3 -3 -3 -2 -1 -1 -------- Run | Jun Mat Min Exi Min Mat Sto Rec Fac Low Low Dat Pro Fac Ext Cet Arc Hub Fac Upp Upp War Pro Res Arm Lab Res Acc Com Damage Taken 21928 | . 352 . . 138 2326 472 99 62 56 32 . 468 57 535 50 247 2093 452 114 . . 81 132 486 . 1347 2018 10311 Core 2742 | . 79 . . 31 403 28 30 . . . . 43 . 35 24 29 250 14 . . . . 33 32 . 111 107 1493 Absorbed by Shields 1480 | . . . . . . . . . . . . . . 55 47 . . 269 . . . . 141 527 . 216 225 . Reduced by Siege Mode 462 | . . . . . . . . . . . . . . . . . . . . . . . . . . . . 462 Regen/Repaired (Parts) 4715 | . . . . . . . . 12 . . . 108 68 60 76 . 33 778 187 . 150 26 7 154 . 517 1296 1243 Core Remaining (%) 77 | 100 . . . 56 . . 16 . . . . 94 . . . . 66 . . . . 98 . . 95 92 . . Volleys Fired 989 | . 45 2 . 7 87 31 5 . 3 3 . 29 8 129 8 15 66 90 6 4 5 4 38 69 . 106 127 102 Largest 3 | . 2 2 . 1 2 2 1 . 2 1 . 1 1 1 1 1 2 2 1 1 1 1 1 3 . 2 3 3 Hottest 215 | . 55 55 . 50 131 100 50 . 83 40 . 40 67 60 60 60 123 145 70 65 65 47 47 215 . 104 191 202 Shots Fired 1333 | . 55 4 . 7 156 60 5 . 4 3 . 29 8 129 8 15 92 92 6 4 5 4 38 112 . 141 193 163 Gun 394 | . 14 2 . 7 82 60 5 . 3 . . . 2 62 8 14 67 2 . . . . . 37 . . . 29 Cannon 874 | . 41 2 . . 65 . . . 1 3 . 22 6 28 . . 24 90 6 4 5 4 38 75 . 141 190 129 Launcher 30 | . . . . . 9 . . . . . . . . 12 . . 1 . . . . . . . . . 3 5 Special 35 | . . . . . . . . . . . . 7 . 27 . 1 . . . . . . . . . . . . Kinetic 620 | . 55 4 . . 58 22 3 . 4 3 . 22 4 90 8 14 34 67 . 4 5 . . 44 . 47 110 22 Thermal 532 | . . . . . 82 22 . . . . . . 4 . . . 56 2 . . . . . 56 . 94 80 136 Explosive 29 | . . . . . 9 . . . . . . . . 12 . . 1 . . . . . . . . . 3 4 Electromagnetic 68 | . . . . 7 7 16 2 . . . . . . . . . 1 23 6 . . . . 5 . . . 1 Entropic 49 | . . . . . . . . . . . . . . . . . . . . . . 4 38 7 . . . . Robot Hit Streak 24 | . 12 2 . 6 15 15 12 . 2 . . 9 11 17 6 4 7 10 10 11 . 1 11 22 . 8 15 24 Robot Miss Streak 8 | . 3 1 . 1 3 1 1 . 1 . . 5 1 4 1 3 8 3 . . . 3 2 3 . 3 4 3 Penetration Max 2 | . . . . . . . . . . . . . . 1 . . 1 1 . . . . 1 2 . . 1 . Secondary Targets . | . . . . . . . . . . . . . . . . . . . . . . . . . . . . . Shots Hit Robots 892 | . 37 2 . 6 123 48 28 13 2 . . 9 4 89 7 9 55 57 6 1 . 2 36 62 . 61 119 116 Core Hits 422 | . 17 1 . 5 46 23 14 5 2 . . . 1 61 1 4 31 25 5 1 . . 23 29 . 20 49 59 Critical Kills 11 | . . . . . 1 . . . . . . . . . . . . . . . . . 1 1 . 2 4 2 Critical Parts Destroyed 6 | . . . . . . . . . . . . . . . . . 2 . . . . . 2 . . . 1 1 Critical Strikes 45 | . 1 . . . 2 2 1 1 . . . 1 . . . . 2 15 . . . . 3 6 . 2 5 4 Burn 1 | . . . . . . 1 . . . . . . . . . . . . . . . . . . . . . . Meltdown 5 | . . . . . . . . . . . . . . . . . . . . . . . . 1 . 1 2 1 Destroy 11 | . . . . . . . . . . . . . . . . . 2 . . . . . 3 . . 1 3 2 Blast 15 | . 1 . . . . . . . . . . 1 . . . . . 8 . . . . . 4 . . . 1 Corrupt 10 | . . . . . 1 1 . . . . . . . . . . . 7 . . . . . 1 . . . . Smash 1 | . . . . . 1 . . . . . . . . . . . . . . . . . . . . . . . Sever 2 | . . . . . . . 1 1 . . . . . . . . . . . . . . . . . . . . Melee Attacks 85 | . 7 . . . 9 21 24 21 3 . . . . . . . . . . . . . . . . . . . Impact 40 | . 7 . . . 9 21 3 . . . . . . . . . . . . . . . . . . . . . Slashing 45 | . . . . . . . 21 21 3 . . . . . . . . . . . . . . . . . . . Piercing . | . . . . . . . . . . . . . . . . . . . . . . . . . . . . . Sneak Attacks 17 | . . . . . 1 . 14 2 . . . . . . . . . . . . . . . . . . . . Combat Hostiles 6 | . . . . . . . 6 . . . . . . . . . . . . . . . . . . . . . Follow-up Attacks . | . . . . . . . . . . . . . . . . . . . . . . . . . . . . . Damage Inflicted 40719 | . 603 28 . 91 2641 834 1969 512 48 . . 72 98 3873 203 198 2040 2610 310 34 . 72 2143 2653 . 3763 7970 7954 Guns 6971 | . 116 11 . 91 946 834 44 . 11 . . . 44 1382 203 198 1163 62 . . . . . 967 . . . 899 Cannons 25543 | . 487 17 . . 983 . . . . . . 72 54 624 . . 721 2362 310 34 . 72 2106 1686 . 3763 7179 5073 Explosions 5788 | . . . . . 608 . 199 . . . . . . 1867 . . 156 186 . . . . . . . . 791 1981 Melee 2379 | . . . . . 104 . 1726 512 37 . . . . . . . . . . . . . . . . . . . Ramming 38 | . . . . . . . . . . . . . . . . . . . . . . . 37 . . . . 1 Kinetic 13951 | . 603 28 . . 619 314 14 . 11 . . 72 54 2006 203 198 557 1516 . 34 . . . 1169 . 827 4080 1646 Thermal 14717 | . . . . . 1205 311 199 . . . . . 44 . . . 1274 248 . . . . . 1075 . 2936 3099 4326 Explosive 5376 | . . . . . 608 . . . . . . . . 1867 . . 156 . . . . . . . . . 791 1954 Electromagnetic 1755 | . . . . 91 105 209 30 . . . . . . . . . 53 846 310 . . . . 84 . . . 27 Impact 440 | . . . . . 104 . 336 . . . . . . . . . . . . . . . . . . . . . Slashing 1939 | . . . . . . . 1390 512 37 . . . . . . . . . . . . . . . . . . . Piercing . | . . . . . . . . . . . . . . . . . . . . . . . . . . . . . Entropic 2503 | . . . . . . . . . . . . . . . . . . . . . . 72 2106 325 . . . . Highest Corruption 25 | . 1 1 1 1 1 4 4 . . . . 1 . . . . 14 . . . . . 2 15 15 . 3 25 Average Corruption 3 | . 1 1 1 1 1 3 4 . . . . 1 . . . . 7 . . . . . 1 6 15 . 2 8 Corruption Purged 5 | . . . . . . . . . . . . . . . . . . . . . . . . . . . 3 2 Corruption Blocked 98 | . . . . . . . . . . . . . . . . . . . . . . . . . . 98 . . Effects 97 | . 3 1 5 2 . 12 18 . . . . 3 . . . . 5 . . . . . 1 16 3 . 5 23 Message Errors 28 | . 1 . 2 1 . 2 4 . . . . 2 . . . . 1 . . . . . . 7 1 . 1 6 Matter Fused 24 | . 1 . . 1 . 3 8 . . . . . . . . . 2 . . . . . . . 1 . 1 7 Heat Flow Errors 6 | . 1 . . . . . 1 . . . . . . . . . . . . . . . 1 1 . . . 2 Energy Discharges 12 | . . . 2 . . 1 2 . . . . . . . . . . . . . . . . 2 1 . 1 3 Parts Rejected 2 | . . . . . . . . . . . . . . . . . . . . . . . . . . . 1 1 Parts Fused 1 | . . . . . . 1 . . . . . . . . . . . . . . . . . . . . . . Data Loss (minor) 9 | . . 1 1 . . 3 1 . . . . . . . . . . . . . . . . 1 . . . 2 Data Loss (major) 4 | . . . . . . 1 1 . . . . 1 . . . . . . . . . . . 1 . . . . Misfires 1 | . . . . . . . . . . . . . . . . . 1 . . . . . . . . . . . Alerts 2 | . . . . . . . 1 . . . . . . . . . . . . . . . . 1 . . . . Misdirections 2 | . . . . . . . . . . . . . . . . . . . . . . . . 1 . . . 1 Weapon Failures 6 | . . . . . . 1 . . . . . . . . . . 1 . . . . . . 2 . . 1 1 Overload Shots . | . . . . . . . . . . . . . . . . . . . . . . . . . . . . . Overflow Damage 1895 | . . . . . 21 . 477 10 . . . . . 44 . . 2 45 49 . . 12 26 182 . 333 328 366 Projectiles 1189 | . . . . . 3 . . . . . . . . 21 . . . 45 49 . . 12 26 182 . 333 248 270 Explosions 261 | . . . . . 18 . 42 . . . . . . 23 . . 2 . . . . . . . . . 80 96 Melee 445 | . . . . . . . 435 10 . . . . . . . . . . . . . . . . . . . . Knockbacks 78 | . 7 1 . . 4 . 1 . . . . 2 . 3 . . . 15 . . . . . 5 . 8 28 4 Impact 1 | . . . . . . . 1 . . . . . . . . . . . . . . . . . . . . . Kinetic 73 | . 7 1 . . 4 . . . . . . 2 . 3 . . . 15 . . . . . 5 . 7 25 4 Secondary 4 | . . . . . . . . . . . . . . . . . . . . . . . . . . 1 3 . Self-Inflicted Damage 425 | . 43 . . . 81 . 85 . . . . . . . . . 20 . . . . . . . . . 38 158 Shots 11 | . 1 . . . 3 . 2 . . . . . . . . . 1 . . . . . . . . . 1 3 Rammed 3 | . . . . . . . . . . . . . . 1 . . . . . . . . 1 . . . . 1 Targets Rammed 3 | . . . . . . . . . . . . . . 1 . . . . . . . . 1 . . . . 1 Kicked . | . . . . . . . . . . . . . . . . . . . . . . . . . . . . . Crushed . | . . . . . . . . . . . . . . . . . . . . . . . . . . . . . Highest Temperature 504 | . 124 . . 48 387 17 107 . . . . . 16 36 36 51 299 165 48 40 65 30 185 388 . 240 436 504 Average Temperature 67 | . 22 . . 23 80 6 42 . . . . . 10 17 19 26 88 49 20 17 38 13 49 86 . 51 110 108 Received Heat Transfer 3127 | . 72 . . . 504 261 9 . 12 . . 78 . 126 . 45 654 59 9 . . 9 21 61 . 44 137 1026 Effects 5 | . . . . . 2 . . . . . . . . . . . . . . . . . . 1 . 1 . 1 Shutdowns 1 | . . . . . . . . . . . . . . . . . . . . . . . . 1 . . . . Energy Bleed 2 | . . . . . 1 . . . . . . . . . . . . . . . . . . . . 1 . . Matter Decay 1 | . . . . . 1 . . . . . . . . . . . . . . . . . . . . . . . Damage (minor) 1 | . . . . . . . . . . . . . . . . . . . . . . . . . . . . 1 Siege Activations 2 | . . . . . . . . . . . . . . . . . . . . . . . . . . . . 2 Total Turns 38 | . . . . . . . . . . . . . . . . . . . . . . . . . . . . 38 Longest Duration 32 | . . . . . . . . . . . . . . . . . . . . . . . . . . . . 32 Robots Corrupted 6 | . . . . . . . . . . . . . . . . . . 5 . . . . . 1 . . . . Combat Hostiles 5 | . . . . . . . . . . . . . . . . . . 4 . . . . . 1 . . . . Parts Fried 15 | . . . . . . 2 1 . 1 . . . . . . . . 7 2 . . . . . . . 2 . Impact Corruptions 4 | . . . . . . . 3 . . . . . . . . . . . . . . . . . . . 1 . Robots Melted 6 | . . . . . . . . . . . . . . . . . . . . . . . . 1 . 1 2 2 Combat Hostiles 4 | . . . . . . . . . . . . . . . . . . . . . . . . 1 . 1 . 2 Parts Melted 26 | . . . . . 4 1 1 . . . . . . . . . . . . . . . . 3 . 7 4 6 Heat Transferred 11649 | . . . . . 2331 740 338 . . . . . . . . . 616 224 . . . . . 851 . 1665 1480 3404 Parts Sabotaged 7 | . . . . . . . . . . . . . . . . . . . . . . . . . . . 1 6 Parts Stolen . | . . . . . . . . . . . . . . . . . . . . . . . . . . . . . Parts Stripped . | . . . . . . . . . . . . . . . . . . . . . . . . . . . . . Power Chain Reactions 4 | . 1 . . . . . 2 . . . . . . . . . . 1 . . . . . . . . . . Missiles Intercepted . | . . . . . . . . . . . . . . . . . . . . . . . . . . . . . Alert | -11 -10 -10 -10 -9 -8 -8 -8 -6 -6 -6 -6 -5 -5 -5 -5 -5 -5 -4 -4 -4 -4 -3 -3 -3 -3 -2 -1 -1 ------- Run | Jun Mat Min Exi Min Mat Sto Rec Fac Low Low Dat Pro Fac Ext Cet Arc Hub Fac Upp Upp War Pro Res Arm Lab Res Acc Com Peak Influence 2132 | . 215 45 . 60 285 403 392 574 . . . . 233 897 608 409 1420 971 . . . . 557 548 . 751 1750 2132 Initial 1120 | . . 45 . . . 105 91 503 . . . . . 104 501 243 142 695 . . . . 309 291 . . 450 1120 Average 431 | . 89 26 . 9 182 236 168 424 . . . . 135 372 592 371 923 841 . . . . 350 371 . 300 962 1729 Maximum Alert Level 5 | . 1 . . . 1 2 1 2 . . . . 1 3 2 2 4 3 . . . . 2 2 . 3 5 5 Low Security (%) 40 | 100 88 100 . 100 52 15 66 . . . . . 78 21 . . 8 . . . . . 20 5 . 52 . . Level 1 22 | . 11 . . . 47 82 33 37 . . . . 21 32 . 34 15 . . . . . 41 62 . 11 . . Level 2 17 | . . . . . . 1 . 62 . . . . . 37 100 65 11 13 . . . . 38 32 . 34 32 . Level 3 10 | . . . . . . . . . . . . . . 8 . . 12 86 . . . . . . . 1 32 . Level 4 5 | . . . . . . . . . . . . . . . . . 51 . . . . . . . . . 27 33 Level 5 2 | . . . . . . . . . . . . . . . . . . . . . . . . . . . 6 32 High Security 1 | . . . . . . . . . . . . . . . . . . . . . . . . . . . . 33 Max Security . | . . . . . . . . . . . . . . . . . . . . . . . . . . . . . Squads Dispatched 65 | . 3 1 . . 4 . . 1 . . . . 2 3 . . 14 7 . . . . 5 2 . 1 7 15 Investigation 10 | . 1 1 . . 1 . . . . . . . . . . . 2 1 . . . . . . . 1 . 3 Extermination 7 | . . . . . . . . . . . . . . . . . 1 3 . . . . . 1 . . 1 1 Reinforcement 25 | . 2 . . . 3 . . 1 . . . . 1 2 . . 4 3 . . . . 5 1 . . 2 1 Assault 19 | . . . . . . . . . . . . . . 1 . . 4 . . . . . . . . . 4 10 Garrison 4 | . . . . . . . . . . . . . 1 . . . 3 . . . . . . . . . . . Intercept . | . . . . . . . . . . . . . . . . . . . . . . . . . . . . . Searches Triggered 2 | . . . . . . . . 1 . . . . . . . . . . . . . . . 1 . . . . Data Miner Redirects 7 | . . . . . . . . . . . . . . 1 . . 4 . . . . . . . . . . 2 Construction Impeded 1 | . . . . . . . . . . . . . . 1 . . . . . . . . . . . . . . Haulers Reinforced 9 | . . . . . . . . . . . . . 1 . . . 3 1 . . . . 3 . . . 1 . Active Scanning Responses . | . . . . . . . . . . . . . . . . . . . . . . . . . . . . . Cargo Convoy Interrupts . | . . . . . . . . . . . . . . . . . . . . . . . . . . . . . Stealth | -11 -10 -10 -10 -9 -8 -8 -8 -6 -6 -6 -6 -5 -5 -5 -5 -5 -5 -4 -4 -4 -4 -3 -3 -3 -3 -2 -1 -1 --------- Run | Jun Mat Min Exi Min Mat Sto Rec Fac Low Low Dat Pro Fac Ext Cet Arc Hub Fac Upp Upp War Pro Res Arm Lab Res Acc Com Distress Signals 26 | . 2 . . . 1 2 . 2 . . . 1 . . 1 . 1 2 . . . . 1 1 . 6 3 3 Communications Jammed 44 | . . . . . . . . . . . . . . . . . . . . . . . . . . 8 34 2 Distress Signals 43 | . . . . . . . . . . . . . . . . . . . . . . . . . . 7 34 2 Times Spotted 465 | . 20 . . 4 34 13 2 10 2 5 . 13 4 35 5 5 32 23 4 . . 3 14 25 . 56 73 83 Peak Tracking Total 24 | . 6 . . 3 5 5 1 2 1 4 . 10 2 7 5 3 9 6 7 . . 2 6 17 . 6 16 24 Tactical Retreats 67 | . . . . . 5 . . 1 1 1 . 2 1 . . . 2 4 1 . . 1 1 7 . 17 16 7 Traps | -11 -10 -10 -10 -9 -8 -8 -8 -6 -6 -6 -6 -5 -5 -5 -5 -5 -5 -4 -4 -4 -4 -3 -3 -3 -3 -2 -1 -1 ------- Run | Jun Mat Min Exi Min Mat Sto Rec Fac Low Low Dat Pro Fac Ext Cet Arc Hub Fac Upp Upp War Pro Res Arm Lab Res Acc Com Traps Triggered 10 | . . . . . . . . 1 . . . . . 2 . . . 1 . . . . 2 3 . . . 1 Indirectly . | . . . . . . . . . . . . . . . . . . . . . . . . . . . . . Trap Hack Attempts . | . . . . . . . . . . . . . . . . . . . . . . . . . . . . . Triggered . | . . . . . . . . . . . . . . . . . . . . . . . . . . . . . Disarmed . | . . . . . . . . . . . . . . . . . . . . . . . . . . . . . Reprogrammed . | . . . . . . . . . . . . . . . . . . . . . . . . . . . . . Reused 5 | . . . . . . 1 . . . . . . . . . . 2 . . . . . . . . . 2 . Traps Reconfigurated 35 | . . . . . . 4 . 10 . . . . 5 10 . . . 2 . . . . . . . . 4 . Traps Extracted 8 | . . . . . . . . 1 . 1 . . 4 2 . . . . . . . . . . . . . . Installed 2 | . . . . . . . . . . . . . . . . . 2 . . . . . . . . . . . Triggered 15 | . . . . . . 1 . . . 1 . . . . . . 2 . . . 9 . . . . . 2 . Most Traps Carried 4 | . . . . . . . . 1 . 1 1 1 4 4 4 4 4 . . . . . . . . . . . Machines | -11 -10 -10 -10 -9 -8 -8 -8 -6 -6 -6 -6 -5 -5 -5 -5 -5 -5 -4 -4 -4 -4 -3 -3 -3 -3 -2 -1 -1 ---------- Run | Jun Mat Min Exi Min Mat Sto Rec Fac Low Low Dat Pro Fac Ext Cet Arc Hub Fac Upp Upp War Pro Res Arm Lab Res Acc Com Machines Disabled 53 | . 2 . . . 3 1 . 1 . . . 2 1 8 1 3 3 7 . . . . . 3 . 5 8 5 Max in Single Turn 2 | . 1 . . . 1 1 . 1 . . . 1 . 1 . 1 1 2 . . . . . 1 . 1 1 2 Garrison Access 8 | . . . . . . . . . . . . . 1 . . . 1 1 . . . . . . . 3 2 . Phase Generator 1 | . . . . . . . . . . . . . . . . . . . . . . . . . . . . 1 Network Hub 1 | . . . . . . . . . . . . . . . . . 1 . . . . . . . . . . . Machines Repaired 2 | . . . . . . . 1 . . . . . . . . . 1 . . . . . . . . . . . Machines Sabotaged . | . . . . . . . . . . . . . . . . . . . . . . . . . . . . . Overloaded Fab Kills . | . . . . . . . . . . . . . . . . . . . . . . . . . . . . . Hacking | -11 -10 -10 -10 -9 -8 -8 -8 -6 -6 -6 -6 -5 -5 -5 -5 -5 -5 -4 -4 -4 -4 -3 -3 -3 -3 -2 -1 -1 --------- Run | Jun Mat Min Exi Min Mat Sto Rec Fac Low Low Dat Pro Fac Ext Cet Arc Hub Fac Upp Upp War Pro Res Arm Lab Res Acc Com Machines Accessed 79 | . 5 2 2 . 1 7 10 2 1 . 3 1 5 4 3 . 3 4 . 1 1 . 1 4 . 5 7 7 Terminals 49 | . 4 . . . . 7 3 2 . . . 1 3 4 3 . 3 1 . 1 . . 1 3 . 2 4 7 Fabricators 4 | . . . . . . . . . . . . . 1 . . . . 2 . . . . . 1 . . . . Repair Stations . | . . . . . . . . . . . . . . . . . . . . . . . . . . . . . Recycling Units 9 | . 1 . . . 1 . 7 . . . . . . . . . . . . . . . . . . . . . Scanalyzers . | . . . . . . . . . . . . . . . . . . . . . . . . . . . . . Garrison Access 8 | . . . . . . . . . . . . . 1 . . . . 1 . . . . . . . 3 3 . Total Hacks 195 | . 15 2 2 . 1 10 13 2 1 . 24 2 8 8 6 . 4 17 . 1 1 . 11 24 . 10 15 18 Successful 95 | . 5 2 2 . 1 1 10 1 1 . 24 1 3 3 3 . 2 6 . 1 1 . 6 12 . 3 5 2 Failed 100 | . 10 . . . . 9 3 1 . . . 1 5 5 3 . 2 11 . . . . 5 12 . 7 10 16 Catastrophic 22 | . 1 . . . . 3 . 1 . . . . . 1 1 . 1 1 . . . . . 2 . 4 2 5 Database Lockouts . | . . . . . . . . . . . . . . . . . . . . . . . . . . . . . Manual 65 | . 3 . 1 . 1 10 9 2 . . . . 2 3 1 . 4 6 . . 1 . 5 10 . 1 . 6 Terminals 128 | . 14 . . . . 10 5 2 . . . 2 4 8 6 . 4 8 . 1 . . 11 21 . 5 9 18 Fabricators 12 | . . . . . . . . . . . . . 2 . . . . 7 . . . . . 3 . . . . Repair Stations . | . . . . . . . . . . . . . . . . . . . . . . . . . . . . . Recycling Units 10 | . 1 . . . 1 . 8 . . . . . . . . . . . . . . . . . . . . . Scanalyzers . | . . . . . . . . . . . . . . . . . . . . . . . . . . . . . Garrison Access 15 | . . . . . . . . . . . . . 2 . . . . 2 . . . . . . . 5 6 . Terminal Hacks 68 | . 4 2 2 . . 1 1 1 1 . 24 1 2 3 3 . . 2 . 1 1 . 5 10 . 1 3 . Record 11 | . . . 1 . . . . . . . 6 . . . 3 . . . . 1 . . . . . . . . Part Schematic 9 | . . . . . . . . . . . 9 . . . . . . . . . . . . . . . . . Robot Schematic 6 | . . . . . . . . . . . 6 . . . . . . . . . . . . . . . . . Prototype ID Bank 4 | . . . . . . . . . . . 3 . . . . . . . . . . . . . . 1 . . Open Door 9 | . . 2 . . . 1 . . 1 . . 1 1 1 . . . . . . 1 . . 1 . . . . Level Access Points 1 | . . . . . . . . . . . . . . . . . . . . . . . . . . . 1 . Branch Access Points 5 | . 1 . . . . . . 1 . . . . . . . . . 1 . . . . 1 . . . 1 . Garrison Index 1 | . . . . . . . . . . . . . . . . . . . . . . . . 1 . . . . Unreport Threat 7 | . . . . . . . . . . . . . . 1 . . . 1 . . . . 1 3 . . 1 . Transport Status 1 | . . . . . . . . . . . . . . . . . . . . . . . 1 . . . . . Reinforcement Status 1 | . . . . . . . . . . . . . . . . . . . . . . . . 1 . . . . Recall Reinforcements 2 | . . . . . . . . . . . . . . . . . . . . . . . 1 1 . . . . Hauler Manifests 4 | . 1 . . . . . . . . . . . . . . . . . . . . . 1 2 . . . . Zone Layout 6 | . 2 . . . . . 1 . . . . . 1 1 . . . . . . . . . 1 . . . . EX-Prototype ID Bank 1 | . . . 1 . . . . . . . . . . . . . . . . . . . . . . . . . Fabricator Hacks 3 | . . . . . . . . . . . . . . . . . . 3 . . . . . . . . . . Load Schematic 2 | . . . . . . . . . . . . . . . . . . 2 . . . . . . . . . . Build 1 | . . . . . . . . . . . . . . . . . . 1 . . . . . . . . . . Repair Station Hacks . | . . . . . . . . . . . . . . . . . . . . . . . . . . . . . Recycling Unit Hacks . | . . . . . . . . . . . . . . . . . . . . . . . . . . . . . Scanalyzer . | . . . . . . . . . . . . . . . . . . . . . . . . . . . . . Garrison Access Hacks 6 | . . . . . . . . . . . . . 1 . . . . 1 . . . . . . . 2 2 . Seal Access 6 | . . . . . . . . . . . . . 1 . . . . 1 . . . . . . . 2 2 . Unauthorized Hacks 18 | . 1 . . . 1 . 9 . . . . . . . . . 2 . . . . . 1 2 . . . 2 Terminals 8 | . . . . . . . 1 . . . . . . . . . 2 . . . . . 1 2 . . . 2 Track 2 | . . . . . . . . . . . . . . . . . . . . . . . . . . . . 2 Botnet 2 | . . . . . . . . . . . . . . . . . . . . . . . 1 1 . . . . Disrupt 1 | . . . . . . . . . . . . . . . . . . . . . . . . 1 . . . . Sabotage 3 | . . . . . . . 1 . . . . . . . . . 2 . . . . . . . . . . . Fabricators . | . . . . . . . . . . . . . . . . . . . . . . . . . . . . . Repair Stations . | . . . . . . . . . . . . . . . . . . . . . . . . . . . . . Recycling Units 10 | . 1 . . . 1 . 8 . . . . . . . . . . . . . . . . . . . . . Mask 1 | . . . . . . . 1 . . . . . . . . . . . . . . . . . . . . . Tunnel 9 | . 1 . . . 1 . 7 . . . . . . . . . . . . . . . . . . . . . Scanalyzers . | . . . . . . . . . . . . . . . . . . . . . . . . . . . . . Garrison Access . | . . . . . . . . . . . . . . . . . . . . . . . . . . . . . Data Cores Recovered 4 | . . . . . . 1 . . . . . . 1 . . . 1 . . . . . . . . . . 1 Used 1 | . . . . . . . . . . . . . 1 . . . . . . . . . . . . . . . Hacking Detections 47 | . 4 . . . . 6 2 1 . . . 1 3 3 3 . 2 3 . . . . . 4 . 3 6 6 Full Trace Events 5 | . . . . . . . . . . . . . . . . . . 1 . . . . . . . 1 . 3 Feedback Events 1 | . . . . . . . . . . . . . . . . . . . . . . . . . . 1 . . Hackware Fried 1 | . . . . . . . . . . . . . . . . . . . . . . . . . . 1 . . Feedback Blocked . | . . . . . . . . . . . . . . . . . . . . . . . . . . . . . Robot Schematics Acquired 6 | . . . . . . . . . . . 6 . . . . . . . . . . . . . . . . . Robots Built . | . . . . . . . . . . . . . . . . . . . . . . . . . . . . . Authchips . | . . . . . . . . . . . . . . . . . . . . . . . . . . . . . Time . | . . . . . . . . . . . . . . . . . . . . . . . . . . . . . Total Robot Build Rating . | . . . . . . . . . . . . . . . . . . . . . . . . . . . . . Part Schematics Acquired 9 | . . . . . . . . . . . 9 . . . . . . . . . . . . . . . . . Parts Built 1 | . . . . . . . . . . . . . . . . . . 1 . . . . . . . . . . Authchips . | . . . . . . . . . . . . . . . . . . . . . . . . . . . . . Time 76 | . . . . . . . . . . . . . . . . . . 76 . . . . . . . . . . Total Part Build Rating 5 | . . . . . . . . . . . . . . . . . . 5 . . . . . . . . . . Parts Repaired . | . . . . . . . . . . . . . . . . . . . . . . . . . . . . . Time . | . . . . . . . . . . . . . . . . . . . . . . . . . . . . . Parts Recycled . | . . . . . . . . . . . . . . . . . . . . . . . . . . . . . Recycled Matter . | . . . . . . . . . . . . . . . . . . . . . . . . . . . . . Retrieved Matter . | . . . . . . . . . . . . . . . . . . . . . . . . . . . . . Retrieved Components . | . . . . . . . . . . . . . . . . . . . . . . . . . . . . . Parts Scanalyzed . | . . . . . . . . . . . . . . . . . . . . . . . . . . . . . Part Schematics Acquired . | . . . . . . . . . . . . . . . . . . . . . . . . . . . . . Parts Damaged . | . . . . . . . . . . . . . . . . . . . . . . . . . . . . . Bothacking | -11 -10 -10 -10 -9 -8 -8 -8 -6 -6 -6 -6 -5 -5 -5 -5 -5 -5 -4 -4 -4 -4 -3 -3 -3 -3 -2 -1 -1 ------------ Run | Jun Mat Min Exi Min Mat Sto Rec Fac Low Low Dat Pro Fac Ext Cet Arc Hub Fac Upp Upp War Pro Res Arm Lab Res Acc Com Used RIF Installer . | . . . . . . . . . . . . . . . . . . . . . . . . . . . . . Robots Hacked 2 | . . . . . . . . . . . . . . 2 . . . . . . . . . . . . . . Non-combat . | . . . . . . . . . . . . . . . . . . . . . . . . . . . . . Combat . | . . . . . . . . . . . . . . . . . . . . . . . . . . . . . Robot Hacks Applied . | . . . . . . . . . . . . . . . . . . . . . . . . . . . . . Manual 2 | . . . . . . . . . . . . . . 2 . . . . . . . . . . . . . . Relay Couplers Released 5 | . . . . . . . . . . . . . . . . . 2 . . . . . . . . 3 . . Machine Destruction 2 | . . . . . . . . . . . . . . . . . 2 . . . . . . . . . . . Programmers 3 | . . . . . . . . . . . . . . . . . . . . . . . . . . 3 . . Fabnet Peak Effective % . | . . . . . . . . . . . . . . . . . . . . . . . . . . . . . Robots Rewired 19 | . . . . . . . 1 . . . . 6 . 11 . 1 . . . . . . . . . . . . Allies Hacked 1 | . . . . . . . . . . . . . 1 . . . . . . . . . . . . . . . Hacks Repelled . | . . . . . . . . . . . . . . . . . . . . . . . . . . . . . Allies | -11 -10 -10 -10 -9 -8 -8 -8 -6 -6 -6 -6 -5 -5 -5 -5 -5 -5 -4 -4 -4 -4 -3 -3 -3 -3 -2 -1 -1 -------- Run | Jun Mat Min Exi Min Mat Sto Rec Fac Low Low Dat Pro Fac Ext Cet Arc Hub Fac Upp Upp War Pro Res Arm Lab Res Acc Com Total Allies 40 | . . . . . . . 1 . . . . 7 . 26 5 1 . . . . . . . . . . . . Largest Group 16 | . . . . . . . 1 1 . . . 6 6 16 9 9 8 . . . . . . . . . . . Highest-Rated Group 743 | . . . . . . . 18 18 . . . 202 202 584 743 743 610 . . . . . . . . . . . Highest-Rated Ally 159 | . . . . . . . 18 18 . . . 96 41 159 159 159 96 . . . . . . . . . . . Total Orders 9 | . . . . . . . . 1 . . . . . . . . . . . 1 . . . 1 . 5 . 1 STAY 1 | . . . . . . . . 1 . . . . . . . . . . . . . . . . . . . . EXPLORE 3 | . . . . . . . . . . . . . . . . . . . . . . . . . . 3 . . RETURN 5 | . . . . . . . . . . . . . . . . . . . . 1 . . . 1 . 2 . 1 Ally Attacks 392 | . . . . . . . 2 . . . . 15 34 168 32 32 109 . . . . . . . . . . . Total Damage 11453 | . . . . . . . 66 . . . . 654 1222 3897 812 1017 3785 . . . . . . . . . . . Kills 72 | . . . . . . . 1 . . . . 2 8 27 6 3 25 . . . . . . . . . . . Allies Corrupted . | . . . . . . . . . . . . . . . . . . . . . . . . . . . . . Allies Melted 4 | . . . . . . . . . . . . 1 . . . . . . . . 1 . . . . 2 . . Intel | -11 -10 -10 -10 -9 -8 -8 -8 -6 -6 -6 -6 -5 -5 -5 -5 -5 -5 -4 -4 -4 -4 -3 -3 -3 -3 -2 -1 -1 ------- Run | Jun Mat Min Exi Min Mat Sto Rec Fac Low Low Dat Pro Fac Ext Cet Arc Hub Fac Upp Upp War Pro Res Arm Lab Res Acc Com Robot Analysis Total . | . . . . . . . . . . . . . . . . . . . . . . . . . . . . . Derelict Logs Recovered 9 | . . . . 1 . . . . 3 2 . . . . . . . . 1 2 . . . . . . . . Drone Launches 26 | . . . . . . . . . . . . . . . . . . . . 3 . . . 6 . 13 . 4 Drone Recoveries 24 | . . . . . . . . . . . . . . . . . . . . 3 . . . 3 . 15 . 3 Exploration | -11 -10 -10 -10 -9 -8 -8 -8 -6 -6 -6 -6 -5 -5 -5 -5 -5 -5 -4 -4 -4 -4 -3 -3 -3 -3 -2 -1 -1 ------------- Run | Jun Mat Min Exi Min Mat Sto Rec Fac Low Low Dat Pro Fac Ext Cet Arc Hub Fac Upp Upp War Pro Res Arm Lab Res Acc Com Turns Passed 17370 | 6 1308 687 671 676 1441 560 862 645 483 338 45 897 398 1000 241 86 327 1026 249 308 618 258 220 629 83 1537 1000 771 Spaces Moved 18210 | 1 622 272 280 273 678 234 673 677 748 520 75 750 534 1084 238 74 266 1057 448 684 1196 518 259 753 60 2876 1503 857 Core 99 | . . . . . . . . . . . . . . . . . . . . . . . . . . . . 99 Treads 6745 | 1 622 272 280 273 257 190 118 174 . . . . . . . . . . 384 684 1196 518 259 753 60 588 . 116 Legs 1653 | . . . . . . . 326 211 . . . . . . . . . 1052 64 . . . . . . . . . Wheels 465 | . . . . . 421 44 . . . . . . . . . . . . . . . . . . . . . . Hover 6005 | . . . . . . . . 292 748 520 75 750 534 1084 238 74 266 5 . . . . . . . 1419 . . Flight 3243 | . . . . . . . 229 . . . . . . . . . . . . . . . . . . 869 1503 642 Fastest Speed 34 | 160 160 240 240 240 120 155 40 60 60 60 60 60 60 60 60 60 60 60 39 39 39 39 39 39 39 39 36 34 Average Speed 68 | 160 180 240 240 240 152 163 88 74 60 60 60 60 60 60 60 60 63 60 40 39 39 39 39 39 39 39 38 50 Slowest Speed 250 | 160 240 240 240 240 250 166 230 148 60 60 60 60 60 60 60 60 135 135 60 39 39 39 39 39 39 39 39 144 Overloaded Moves 15 | . . . . . . . . . . . . . . . . . . . . . . . . . . . 15 . Propulsion Burnouts . | . . . . . . . . . . . . . . . . . . . . . . . . . . . . . Robots Hopped 28 | . . . . . . . 3 . . . . . . . . . . . . . . . . . . 9 12 4 Cave-ins Triggered . | . . . . . . . . . . . . . . . . . . . . . . . . . . . . . Exploration Rate (%) 52 | 2 94 63 66 56 34 51 93 19 87 67 68 63 11 95 61 77 20 25 52 78 89 51 10 50 6 68 34 41 Regions Visited 28 Branch Regions 20 Pre-discovered Areas 13 | . 1 . 1 . 1 . 7 . 1 . 1 . . . . . . . 1 . . . . . . . . . Known Exits Taken 15 | . 1 . . . . . . 1 1 1 1 1 1 . . . 1 1 1 1 1 1 1 . . . 1 . Unknown Exits Taken 13 | 1 . 1 1 1 1 1 1 . . . . . . 1 1 1 . . . . . . . 1 1 1 . . Scrap Searched 9 | . . 1 . 1 . . . . 1 1 . 1 . . . . . . 1 1 . 2 . . . . . . Spaces Dug 143 | . 3 . . . 6 1 . 5 2 1 . 4 1 2 . . . 16 . 3 . . 4 22 . 38 27 8 Terrain Destroyed 745 | . 6 . . . 52 1 5 5 3 2 . 10 1 84 2 . 26 52 . 3 1 11 51 32 . 69 197 132 Melee 17 | . 3 . . . 6 1 . 5 2 . . . . . . . . . . . . . . . . . . . Projectile 398 | . . . . . . . . . 1 2 . 10 1 37 2 . 15 28 . 3 1 11 51 32 . 69 102 33 AOE 330 | . 3 . . . 46 . 5 . . . . . . 47 . . 11 24 . . . . . . . . 95 99 Terrain Rammed . | . . . . . . . . . . . . . . . . . . . . . . . . . . . . . Walls Destroyed . | . . . . . . . . . . . . . . . . . . . . . . . . . . . . . Machines Disabled . | . . . . . . . . . . . . . . . . . . . . . . . . . . . . . Actions | -11 -10 -10 -10 -9 -8 -8 -8 -6 -6 -6 -6 -5 -5 -5 -5 -5 -5 -4 -4 -4 -4 -3 -3 -3 -3 -2 -1 -1 --------- Run | Jun Mat Min Exi Min Mat Sto Rec Fac Low Low Dat Pro Fac Ext Cet Arc Hub Fac Upp Upp War Pro Res Arm Lab Res Acc Com Total 21779 | 6 741 304 280 287 904 315 897 786 772 543 74 1174 605 1391 332 110 362 1370 510 721 1348 569 339 979 119 3141 1744 1056 Wait 1966 | . 42 21 . 4 78 3 164 62 12 19 . 385 47 154 82 20 8 143 56 25 113 48 36 143 58 95 91 57 Move 18131 | . 621 271 279 272 677 233 666 676 747 519 74 749 533 1083 237 73 265 1056 447 683 1195 517 259 752 59 2861 1478 849 Hop 24 | . . . . . . . 3 . . . . . . . . . . . . . . . . . . 5 12 4 Pick Up 120 | . 11 9 1 2 12 6 6 4 1 1 . 3 5 2 1 . 4 16 . 3 . . 1 2 . 20 5 5 Fast Attach 77 | . 2 . . . 9 2 4 2 1 . . 1 1 . 1 . 8 9 . . 11 . . 2 . 8 3 13 Attach 71 | . . . . 1 12 2 1 9 . . . 1 4 6 . 1 . 9 . 1 . . 2 3 . 4 7 8 Detach 51 | . 1 . . . 3 . 5 7 2 . . 2 2 6 . 1 1 6 . . 1 . . 3 . 1 4 6 Swap 106 | 3 5 . . 1 13 9 . 2 2 . . 1 2 1 1 . 4 13 1 2 . . 2 5 . 17 14 8 Drop 139 | 3 7 1 . . 4 8 17 3 1 1 . 3 3 2 2 . 4 23 . 3 23 . 1 . 2 22 3 3 Fire 989 | . 45 2 . 7 87 31 5 . 3 3 . 29 8 129 8 15 66 90 6 4 5 4 38 69 . 106 127 102 Melee 85 | . 7 . . . 9 21 24 21 3 . . . . . . . . . . . . . . . . . . . Ram 2 | . . . . . . . . . . . . . . 1 . . . . . . . . . . . . . 1 Kick . | . . . . . . . . . . . . . . . . . . . . . . . . . . . . . Crush . | . . . . . . . . . . . . . . . . . . . . . . . . . . . . . Escape Stasis 11 | . . . . . . . . . . . . . . 6 . . . 5 . . . . . . . . . . Rewire 5 | . . . . . . . 2 . . . . . . 1 . . . . . . . . . . . 2 . . Trap 2 | . . . . . . . . . . . . . . . . . 2 . . . . . . . . . . . Miscellaneous . | . . . . . . . . . . . . . . . . . . . . . . . . . . . . . Route ------- -11/Junkyard -10/Materials (discovered 5 exits: [*Mat x3] / *Min x2) -10/Mines (discovered 3 exits: [*Mat x2] / *Exi) -10/Exiles (discovered 2 exits: [*Min x2]) -9/Mines -8/Materials (discovered 2 exits: [*Fac] / *Sto) -8/Storage (discovered 2 exits: [*Fac] / *Rec) -8/Recycling -6/Factory (discovered 2 exits: *Low x2) -6/Lower Caves -6/Lower Caves -6/Data Miner -5/Proximity Caves -5/Factory (discovered 4 exits: Fac x2 / Upp / *Ext) -5/Extension (discovered 2 exits: *Fac / *Cet) -5/Cetus -5/Archives (discovered 2 exits: *Fac / *Hub) -5/Hub_04(d) -4/Factory (discovered 3 exits: *Res / *Upp x2) -4/Upper Caves -4/Upper Caves -4/Warlord -3/Proximity Caves -3/Research (discovered 3 exits: *Arm / Qua x2) -3/Armory (discovered 2 exits: Res / *Lab) -3/Lab -2/Research -1/Access (discovered 2 exits: Sur / *Com) -1/Command History --------- Turn | Location | Event 7 | -11/Junkyard | Discovered new exit (range 0) 7 | -11/Junkyard | Entered Materials 169 | -10/Materials | Discovered new exit (range 8) 169 | -10/Materials | Identified exit to Mines 328 | -10/Materials | Build established: Mutant 512 | -10/Materials | Discovered new exit (range 12) 778 | -10/Materials | Discovered new exit (range 10) 1005 | -10/Materials | Discovered new exit (range 8) 1315 | -10/Materials | Entered Mines 1614 | -10/Mines | Met a Derelict who couldn't figure out how to use a Trap Extractor 1768 | -10/Mines | Met a Derelict shopkeep closing up shop 1966 | -10/Mines | Discovered new exit (range 5) 1969 | -10/Mines | Discovered new exit (range 6) 1993 | -10/Mines | Deemed a non-threat by the Exiles lab entrance 1993 | -10/Mines | Discovered new exit (range 5) 2002 | -10/Mines | Entered Exiles 2038 | -10/Exiles | Discovered new exit (range 15) 2067 | -10/Exiles | Met 8R-AWN 2103 | -10/Exiles | Met EX-HEX 2197 | -10/Exiles | Met EX-DEC 2206 | -10/Exiles | Learned location of Zion (-7) 2252 | -10/Exiles | Met EX-BIN 2288 | -10/Exiles | Aligned with FarCom system 2290 | -10/Exiles | Given EX-Vault access code 2360 | -10/Exiles | Opened EX-Vault 2377 | -10/Exiles | Found Trap Reconfigurator 2428 | -10/Exiles | Warned to stay clear of 0b10 Research branches 2651 | -10/Exiles | Discovered new exit (range 10) 2673 | -10/Exiles | Left Exiles lab with Trap Reconfigurator 2673 | -10/Exiles | Entered Mines 3049 | -9/Mines | Assembled infested the area 3158 | -9/Mines | Found a hidden stash of uninstalled traps 3248 | -9/Mines | Learned Materials security intel 3284 | -9/Mines | Discovered new exit (range 11) 3349 | -9/Mines | Entered Materials 3349 | -8/Materials | Evolved 4 slots: Propulsion x2, Utility x2 3799 | -8/Materials | Discovered new exit (range 8) 3896 | -8/Materials | Discovered new exit (range 11) 3997 | -8/Materials | Lost 8 parts (1p4n3w) 4005 | -8/Materials | Core integrity fell below 50% 4053 | -8/Materials | Lost 5 parts (3n1u1w) 4565 | -8/Materials | Build established: Scavenger-Mutant 4790 | -8/Materials | Entered Storage 5222 | -8/Storage | Discovered new exit (range 10) 5345 | -8/Storage | Used back door to open Recycling access 5345 | -8/Storage | Discovered new exit (range 4) 5350 | -8/Storage | Entered Recycling 5394 | -8/Recycling | Found Scrap Engine 5685 | -8/Recycling | Build established: Mutant 5767 | -8/Recycling | Core integrity fell below 20% 6192 | -8/Recycling | Discovered new exit (range 16) 6197 | -8/Recycling | Build established: Construct 6212 | -8/Recycling | Entered Factory 6212 | -6/Factory | Accompanied by 1 ally 6212 | -6/Factory | Evolved 4 slots: Propulsion x1, Utility x3 6505 | -6/Factory | Build established: Mutant 6562 | -6/Factory | Search patrols dispatched 6589 | -6/Factory | Identified exit to Lower Caves 6857 | -6/Factory | Entered Lower Caves 6864 | -6/Lower Caves | Attracted the attention of an 0b10 checkpoint 6931 | -6/Lower Caves | Identified exit to Lower Caves 6999 | -6/Lower Caves | Learned Factory terminal intel 7340 | -6/Lower Caves | Entered another Lower Caves area 7341 | -6/Lower Caves | Encountered a Warlord checkpoint 7383 | -6/Lower Caves | Learned 12 Factory zone layouts 7412 | -6/Lower Caves | Build established: Construct 7518 | -6/Lower Caves | Learned 8 Factory zone layouts 7653 | -6/Lower Caves | Discovered new exit (range 6) 7656 | -6/Lower Caves | Identified exit to Data Miner 7678 | -6/Lower Caves | Entered Data Miner 7678 | -6/Data Miner | Discovered new exit (range 6) 7690 | -6/Data Miner | Met Data Miner 7700 | -6/Data Miner | Learned location of Section 7 (-2) 7700 | -6/Data Miner | Acquired the access code to Warlord's prototype stash 7709 | -6/Data Miner | Received God Mode back door access code from Data Miner 7722 | -6/Data Miner | Identified exit to Proximity Caves 7723 | -6/Data Miner | Entered Proximity Caves 7739 | -5/Proximity Caves | Escorted by Enhanced Grunt 7889 | -5/Proximity Caves | Spotted B-75 Beast 7909 | -5/Proximity Caves | Received a Behemoth hack from an annoying Tinkerer 8232 | -5/Proximity Caves | Spotted B-75 Beast 8233 | -5/Proximity Caves | Entered a huge 0b10 base via the front door 8250 | -5/Proximity Caves | Derelicts attacked a huge 0b10 base 8265 | -5/Proximity Caves | Discovered new exit (range 3) 8266 | -5/Proximity Caves | Identified exit to Factory 8604 | -5/Proximity Caves | Build established: Commander-Construct 8620 | -5/Proximity Caves | Entered Factory 8620 | -5/Factory | Accompanied by 6 allies 8620 | -5/Factory | Evolved 2 slots: Utility x2 8621 | -5/Factory | Identified exit to Factory 8621 | -5/Factory | Identified exit to Upper Caves 8621 | -5/Factory | Identified exit to Extension 8622 | -5/Factory | Loaded intel: 27 terminal locations 8624 | -5/Factory | Garrison activated, responded to threat 9018 | -5/Factory | Entered Extension 9150 | -5/Extension | Rescued a captive Derelict 9166 | -5/Extension | Rescued a captive Derelict 9223 | -5/Extension | Rescued a captive Derelict 9235 | -5/Extension | Rescued a captive Derelict 9271 | -5/Extension | Rescued a captive Derelict 9493 | -5/Extension | Disrupted transfer network 9499 | -5/Extension | Spotted B-75 Beast 9502 | -5/Extension | Befriended a Behemoth using the annoying Tinkerer's hack 9506 | -5/Extension | Spotted B-75 Beast 9507 | -5/Extension | Befriended a Behemoth using the annoying Tinkerer's hack 9538 | -5/Extension | Rescued a captive Derelict 9558 | -5/Extension | Rescued a captive Derelict 9559 | -5/Extension | Rescued a captive Derelict 9575 | -5/Extension | Rescued a captive Derelict 9576 | -5/Extension | Rescued a captive Derelict 9629 | -5/Extension | Rescued a captive Derelict 9690 | -5/Extension | Rescued a captive Derelict 9691 | -5/Extension | Rescued a captive Derelict 9773 | -5/Extension | Rescued A7 9794 | -5/Extension | Discovered exit to Factory (range 10) 9794 | -5/Extension | Discovered new exit (range 6) 9812 | -5/Extension | Disrupted transfer network 9918 | -5/Extension | First assault squad dispatched 9934 | -5/Extension | Incoming assault squad redirected 10018 | -5/Extension | Entered Cetus 10018 | -5/Cetus | Accompanied by 7 allies (A7) 10023 | -5/Cetus | Acquired a Cetus Manufacturing Module code from A7 10028 | -5/Cetus | Spotted Cetus Guard 10028 | -5/Cetus | Spotted Cetus Guard 10037 | -5/Cetus | Spotted Cetus Guard 10038 | -5/Cetus | Spotted Cetus Guard 10039 | -5/Cetus | Allies destroyed Cetus Guard 10041 | -5/Cetus | Allies destroyed Cetus Guard 10045 | -5/Cetus | Allies destroyed Cetus Guard 10055 | -5/Cetus | Allies destroyed Cetus Guard 10087 | -5/Cetus | Started Cetus Manufacturing Module 10104 | -5/Cetus | Build established: Construct 10112 | -5/Cetus | Manufactured an Enhanced Grunt 10137 | -5/Cetus | Manufactured an Enhanced Grunt 10162 | -5/Cetus | Manufactured an Enhanced Grunt 10187 | -5/Cetus | Manufactured an Enhanced Grunt 10212 | -5/Cetus | Manufactured an Enhanced Grunt 10223 | -5/Cetus | Discovered new exit (range 16) 10259 | -5/Cetus | Entered Archives 10259 | -5/Archives | Accompanied by 9 allies (A7) 10296 | -5/Archives | Discovered new exit (range 15) 10313 | -5/Archives | Discovered exit to Factory (range 15) 10345 | -5/Archives | Entered Hub_04(d) 10345 | -5/Hub_04(d) | Accompanied by 8 allies 10371 | -5/Hub_04(d) | Discovered exit to Factory (range 16) 10462 | -5/Hub_04(d) | Garrison activated, responded to threat 10487 | -5/Hub_04(d) | Build established: Commander-Construct 10522 | -5/Hub_04(d) | Network Hub disabled 10528 | -5/Hub_04(d) | Spotted Lightning 10528 | -5/Hub_04(d) | Spotted Lightning 10528 | -5/Hub_04(d) | Spotted Lightning 10538 | -5/Hub_04(d) | Allies destroyed Lightning 10540 | -5/Hub_04(d) | Incoming assault squad redirected 10546 | -5/Hub_04(d) | Incoming investigation squad redirected 10574 | -5/Hub_04(d) | Destroyed Lightning 10629 | -5/Hub_04(d) | Destroyed Lightning 10634 | -5/Hub_04(d) | Found Prototype Energy Cannon 10634 | -5/Hub_04(d) | Identified EMDS 10637 | -5/Hub_04(d) | Lost 4 parts (3u1w) 10639 | -5/Hub_04(d) | Found Prototype Processor 10639 | -5/Hub_04(d) | Identified Exp. Targeting Computer 10641 | -5/Hub_04(d) | Found Exp. Targeting Computer 10645 | -5/Hub_04(d) | First assault squad dispatched 10652 | -5/Hub_04(d) | System corruption reached 10% 10654 | -5/Hub_04(d) | Found Prototype Device 10662 | -5/Hub_04(d) | Incoming assault squad redirected 10665 | -5/Hub_04(d) | Incoming assault squad redirected 10672 | -5/Hub_04(d) | Entered Factory 10672 | -4/Factory | Evolved 2 slots: Power x1, Propulsion x1 10718 | -4/Factory | Identified Exp. EM Disruption Field 10787 | -4/Factory | Fabricated Lgt. Regenerative Plating (x1) 10811 | -4/Factory | Build established: Hacker-Construct 10932 | -4/Factory | Identified exit to Upper Caves 11293 | -4/Factory | Discovered new exit (range 5) 11698 | -4/Factory | Entered Upper Caves 11704 | -4/Upper Caves | Learned location of Testing (-2) 11937 | -4/Upper Caves | Discovered new exit (range 16) 11947 | -4/Upper Caves | Identified exit to Upper Caves 11947 | -4/Upper Caves | Entered another Upper Caves area 11960 | -4/Upper Caves | Learned Research stockpile data 11970 | -4/Upper Caves | Encountered a Warlord checkpoint 12254 | -4/Upper Caves | Discovered new exit (range 5) 12255 | -4/Upper Caves | Identified exit to Warlord 12255 | -4/Upper Caves | Entered Warlord 12266 | -4/Warlord | Discovered new exit (range 12) 12314 | -4/Warlord | Found Prototype Special Weapon 12314 | -4/Warlord | Identified RU-N14's Throwing Claymores v3 12367 | -4/Warlord | Met Warlord 12370 | -4/Warlord | Opened Warlord's prototype stash 12376 | -4/Warlord | Found Prototype Device 12376 | -4/Warlord | Identified Exp. Phase Shifter 12380 | -4/Warlord | Found Prototype Device 12380 | -4/Warlord | Identified System Purifier 12392 | -4/Warlord | Warlord's base attacked by MAIN.C 12416 | -4/Warlord | Found Prototype Energy Cannon 12416 | -4/Warlord | Identified Vortex Driver 12418 | -4/Warlord | Found Prototype Piercing Weapon 12418 | -4/Warlord | Identified Vortex Lance 12422 | -4/Warlord | Found Prototype Energy Gun 12422 | -4/Warlord | Identified Vortex Shotgun 12633 | -4/Warlord | Found Prototype Device 12633 | -4/Warlord | Identified Minesniffer Drone Bay 12742 | -4/Warlord | Warlord forces counterattacked 12873 | -4/Warlord | Identified exit to Proximity Caves 12873 | -4/Warlord | Entered Proximity Caves 12927 | -3/Proximity Caves | Spotted B-86 Titan 13001 | -3/Proximity Caves | Spotter reported a threat 13076 | -3/Proximity Caves | Spotter reported a threat 13126 | -3/Proximity Caves | Discovered new exit (range 14) 13131 | -3/Proximity Caves | Identified exit to Research 13131 | -3/Proximity Caves | Entered Research 13131 | -3/Research | Evolved 2 slots: Utility x1, Weapon x1 13132 | -3/Research | Identified exit to Armory 13153 | -3/Research | Identified exit to Quarantine 13351 | -3/Research | Entered Armory 13793 | -3/Armory | System corruption reached 10% 13890 | -3/Armory | Search patrols dispatched 13941 | -3/Armory | Discovered new exit (range 12) 13976 | -3/Armory | Discovered new exit (range 4) 13980 | -3/Armory | Entered Lab 13980 | -3/Lab | Accompanied by 3 allies 13980 | -3/Lab | Discovered new exit (range 9) 13985 | -3/Lab | Unable to decrypt terminal 14063 | -3/Lab | Entered Research 14063 | -2/Research | Accompanied by 3 allies 14063 | -2/Research | Warlord forces began assault on 0b10 14063 | -2/Research | Evolved 2 slots: Propulsion x1, Weapon x1 14131 | -2/Research | Adv. Hacking Suite fried by hacking feedback 14173 | -2/Research | Research machine network offline 14259 | -2/Research | Found Quantum Capacitor 14310 | -2/Research | Met up with Warlord 14410 | -2/Research | Borebot progress halted 14441 | -2/Research | Build established: Construct 14598 | -2/Research | Spotted B-90 Cyclops 14627 | -2/Research | Borebot progress halted 14701 | -2/Research | Found Prototype Device 14701 | -2/Research | Identified Exp. Transmission Jammer 14778 | -2/Research | Borebot progress halted 14807 | -2/Research | Spotted Executioner 14907 | -2/Research | Found Fusion Bomb Launcher 15118 | -2/Research | Spotted Striker 15118 | -2/Research | Destroyed Striker 15120 | -2/Research | Spotted Striker 15138 | -2/Research | Destroyed Striker 15144 | -2/Research | Spotted Executioner 15147 | -2/Research | Spotted Executioner 15204 | -2/Research | Spotted Striker 15247 | -2/Research | Spotted Striker 15267 | -2/Research | Destroyed Striker 15270 | -2/Research | Spotted B-90 Cyclops 15272 | -2/Research | Found Exp. Transmission Jammer 15319 | -2/Research | Spotted Striker 15361 | -2/Research | Spotted Striker 15465 | -2/Research | Spotted Executioner 15484 | -2/Research | Spotted Striker 15565 | -2/Research | Discovered new exit (range 15) 15581 | -2/Research | Spotted Striker 15588 | -2/Research | Spotted Striker 15600 | -2/Research | Entered Access 15600 | -1/Access | Evolved 2 slots: Utility x2 15888 | -1/Access | Build established: Hacker-Construct 15991 | -1/Access | Spotted B-99 Colossus 16064 | -1/Access | Identified exit to Surface 16241 | -1/Access | Identified exit to Command 16350 | -1/Access | First assault squad dispatched 16600 | -1/Access | Entered Command 16659 | -1/Command | Phase Generator disabled 16696 | -1/Command | Incoming investigation squad redirected 16850 | -1/Command | First assault squad dispatched 16892 | -1/Command | Spotted B-99 Colossus 16963 | -1/Command | Spotted Alpha 7 17014 | -1/Command | Incoming investigation squad redirected 17065 | -1/Command | Destroyed 7 combat bots 17098 | -1/Command | Destroyed Alpha 7 17110 | -1/Command | High security lockdown imminent 17127 | -1/Command | Lost 8 parts (1p2n2u3w) 17134 | -1/Command | System corruption reached 10% 17190 | -1/Command | High security lockdown engaged 17195 | -1/Command | Core integrity fell below 50% 17231 | -1/Command | Lost 5 parts (1n3u1w) 17308 | -1/Command | Spotted Executioner 17308 | -1/Command | Spotted Executioner 17321 | -1/Command | Core integrity fell below 20% 17354 | -1/Command | Lost 10 parts (3n5u2w) 17371 | -1/Command | Destroyed by B-99 Colossus with Multirail Last Messages --------------- 17321_ Acquired 119 matter. 17322_ Slammed into M-36 Artificer. 17322_ B-74 Champion overheating. 17322_ Scrap Engine destroyed. 17323_ Y-72 Warden heat damages Unknown Protection, Broken Med. Treads, Broken Med. Treads, Quantum Rifle. 17323_ B-74 Champion heat spikes uncontrollably. 17323_ Acquired 104 matter. 17323_ B-74 Champion overheating. 17323_ Treaded Siege-Diametric Exoskeleton destroyed. 17324_ B-74 Champion overheating. 17327_ M-36 Artificer repairs Broken Quantum Rifle. 17335_ K-01 Serf collects debris. 17347_ C-30 ARC bursts open, deploying its payload. 17347_ G-73 Enforcer unfolds itself. 17347_ B-74 Champion unfolds itself. 17347_ M-36 Artificer unfolds itself. 17359_ W-44 Eye sends out distress signal. 17361_ F>S8=G/JRX1UAM>SQA>YOZK3 Map ----- +----------------------------------------------------+ | ?????????# !! #??#""" # # ### | | ?????????# ! #??#""" # # #?? | | ?????????# #??# + * + #?? | | ?????????# #??# " # #?? | | ?????#########+############+#+#####"###### #?? | | ?????+ #???# #?? | | ?????+ % #???# #?? | | ?????+ % #???# ### | | ?????+ % "" #???# ## | | ?????+ "Y" "#### ## | | ?????### """" " " + | | ??????## """ ## | | ??????#" """" R ## | | ?????# # % """" ## | | ??????#" k !!! ## | | ???????# !!R ####+##/#/####/#### | | ???????# %=! !!! ###?? ??? ?# | | ???????# %%! R BB#? ?? ### | | ??????## =* BB# " ?#?? | | ?????##" ;## "" #?? | | ?????# + #?? | | ?????# #"### !! # * ! ! #?? | | ?????# ###?# !! ################?? | | ?????# #???# ! #?????????????? | | ?????# #??#; #?????????????? | | ?????# #??## @ T#???????????? | | ?????# #???# ""#???????????? | | ?????# #???# ####### ###???????????? | | ?????# #???# #?#####?? #?????????????? | | ????## ##??# ####;## # #????#?????????????? | | ????# ####+######; # #??????????????????? | | ????# + ##g g + = #??????????????????? | | ????# # ## w # #??????????????????? | | ????##### """ ## #######??????????????????? | | ????????# ""T"" + #????????????????????????? | | ????????# "" "" ## #????????????????????????? | | ????????# ## #????????????????????????? | | ????????# ## #???????????7????????????? | | ???###### C ## ####????????????????????????? | | ???# ####+####+## #???????K??????K????????????? | | ???# "" #???????????????????????????? | | ???# "T #???????E???????????????????? | | ???# ### ####+##"####????????????????????????? | | ???## ##?# # #????????????????????????? | | ????# #??# # #????????????????????????? | | ????# #??# # !**#????????????????????????? | | ???# #??# + !**#????????????????????????? | | #### #??# # ** #????????????????????????? | | #??# # ! #????????????????????????? | | #??# # #????????????????????????? | +----------------------------------------------------+ Best States ------------- Heat Dissipation 78 Energy Generation 63 Energy Capacity 1148 Matter Stores 300 Matter Capacity 300 Sight Range 16 Robot Scan Range 15 Terrain Scan Density 10 ECM Strength 2 Jamming Range 22 Cloak Strength 4 Power Amplification 20 Armor Coverage 225 Resistance: TH 25 Resistance: EM 75 Weapon Cycling 30 Phase Shifting 20 Evasion (%) 96 Targeting Accuracy 24 Target Analysis 8 Core Analysis 6 Recoil Reduction 6 Energy Filtering 50 Offensive Hacking 40 Defensive Hacking 12 Trap Extractor Capacity 6 Item Schematics ----------------- Combat Drone Bay | -6/Data Miner | Free Lgt. Regenerative Plating | -6/Data Miner | Free Cld. Nuclear Pulse Thruster | -6/Data Miner | Free Imp. Matter Compressor | -6/Data Miner | Free Tiamat Missile Launcher | -6/Data Miner | Free Imp. Gyrokinetic Inverter | -6/Data Miner | Free Adv. Reaction Control System | -6/Data Miner | Free Dispersion Rifle | -6/Data Miner | Free Matter Neutralizer | -6/Data Miner | Free Robot Schematics ------------------ R-10 Processor | -6/Data Miner | Free S-27 Virus | -6/Data Miner | Free A-15 Conveyor | -6/Data Miner | Free G-50 Soldier | -6/Data Miner | Free H-77 Assassin | -6/Data Miner | Free G-67 Veteran | -6/Data Miner | Free Fabricated ------------ Lgt. Regenerative Plating | x1 | -4/Factory Alien Tech Used ----------------- None Achievements -------------- Woof! Challenges ------------ None Game ------ Seed ElectronDamperKinecellerator Manual? 0 Play Time 04:44:27 Cumulative 126.7 hours Start 2023.05.02 @ 01:16:12 End 2023.05.04 @ 01:59:41 Sessions 15 Manual Loads 0 Difficulty Rogue Special Mode None Game No. 89 Rogue 89 Adventurer 0 Explorer 0 Win Type - Total 3 Types 2/0/1/0/0/0/0/0/0 Lore% 61 Gallery% 78 Achievement% 68 Wizard Run 0 Options --------- ASCII 0 Keyboard 1 Movement Vi Keybinds 0 Fullscreen 2 Font 18/Terminus Map View 76x50 Tactical HUD 1 Map Filters NONE Filters NONE Steam X RUN: 3418fe97-6244-45eb-a739-7f924b9d96b8